bitfinex/quotes_SOLUSD_20220129
["timestamp","ask_amount","ask_price","bid_price","bid_amount"]
[1643438180803,0.25,95.568,95.546,1.3980583]
[1643438181100,0.25,95.568,95.545,1.3980583]
[1643438181300,0.25,95.568,95.546,1.3980583]
[1643438182103,6.0,95.569,95.546,1.3980583]
[1643438182300,0.25,95.568,95.547,1.3980583]
[1643438183102,15.703,95.61,95.551,1.3980583]
[1643438183301,15.703,95.61,95.538,36.3435079]
[1643438183302,15.703,95.61,95.56,1.3980583]
[1643438183506,6.0,95.6,95.562,1.3980583]
[1643438183701,6.0,95.6,95.563,1.3980583]
[1643438183902,6.0,95.62,95.563,1.3980583]
[1643438184302,21.06,95.62,95.565,1.3980583]
[1643438184504,21.06,95.62,95.56,1.3980583]
[1643438184705,21.06,95.62,95.562,1.3980583]
[1643438185107,36.761,95.62,95.563,1.3980583]
[1643438185303,0.25,95.619,95.562,1.3980583]
[1643438185504,0.25,95.619,95.561,1.3980583]
[1643438185704,0.25,95.619,95.537,0.25]
[1643438185705,0.25,95.619,95.564,1.3980583]
[1643438186203,0.25,95.619,95.565,1.3980583]
[1643438186604,0.25,95.619,95.568,1.3980583]
[1643438187004,0.25,95.619,95.57,1.3980583]
[1643438187406,23.5344,95.619,95.564,1.3980583]
[1643438187604,6.0,95.609,95.565,1.3980583]
[1643438187804,23.5344,95.608,95.564,1.3980583]
[1643438188006,6.0,95.598,95.564,1.3980583]
[1643438188205,9.81561525,95.597,95.569,0.25359654]
[1643438188407,15.06,95.59,95.538,2.82268189]
[1643438188606,0.48612444,95.579,95.542,2.82268189]
[1643438188804,0.73612444,95.579,95.539,2.82268189]
[1643438189205,0.73612444,95.579,95.541,2.82268189]
[1643438189404,0.73612444,95.579,95.54,3.33622268]
[1643438189605,0.73612444,95.579,95.539,2.82268189]
[1643438190005,0.48612444,95.579,95.539,2.82268189]
[1643438190205,0.48612444,95.579,95.54,2.82268189]
[1643438190406,0.73612444,95.579,95.541,2.82268189]
[1643438190806,0.73612444,95.579,95.542,3.33622268]
[1643438191010,0.48612444,95.579,95.541,2.82268189]
[1643438191207,0.48612444,95.579,95.532,2.82268189]
[1643438191408,0.73612444,95.579,95.528,2.82268189]
[1643438192011,6.0,95.57,95.526,2.82268189]
[1643438192211,6.0,95.57,95.529,3.33622268]
[1643438192415,6.0,95.57,95.528,2.82268189]
[1643438192611,0.48612444,95.579,95.531,2.82268189]
[1643438192612,6.0,95.576,95.531,2.82268189]
[1643438192812,6.0,95.576,95.504,4.20684958]
[1643438192813,0.25,95.575,95.53,2.82268189]
[1643438193111,0.25,95.575,95.531,2.82268189]
[1643438193314,0.25,95.575,95.531,3.33622268]
[1643438193516,0.25,95.575,95.53,2.82268189]
[1643438193912,0.25,95.575,95.531,2.82268189]
[1643438194113,0.25,95.575,95.53,2.82268189]
[1643438194415,6.0,95.576,95.532,2.82268189]
[1643438194613,6.0,95.576,95.531,6.15890457]
[1643438194816,6.0,95.576,95.533,3.33622268]
[1643438195124,6.0,95.576,95.535,2.82268189]
[1643438195313,6.0,95.576,95.534,6.15890457]
[1643438195515,6.0,95.576,95.536,3.33622268]
[1643438195716,6.0,95.576,95.535,3.33622268]
[1643438195915,6.0,95.576,95.534,2.82268189]
[1643438195916,0.25,95.575,95.533,2.82268189]
[1643438196918,0.25,95.575,95.532,2.82268189]
[1643438197318,0.25,95.575,95.533,2.82268189]
[1643438198119,0.25,95.575,95.532,2.82268189]
[1643438198320,0.48612444,95.579,95.532,2.82268189]
[1643438198622,0.48612444,95.579,95.534,2.82268189]
[1643438199243,0.48612444,95.579,95.532,2.82268189]
[1643438200043,6.0,95.576,95.532,2.82268189]
[1643438200443,0.25,95.575,95.532,2.82268189]
[1643438200843,0.25,95.575,95.531,2.82268189]
[1643438201343,0.25,95.575,95.532,3.33622268]
[1643438201744,0.25,95.575,95.526,0.25]
[1643438201745,6.0,95.576,95.53,2.82268189]
[1643438201943,6.0,95.576,95.533,3.33622268]
[1643438202143,6.0,95.576,95.529,2.82268189]
[1643438202846,6.0,95.576,95.53,0.25]
[1643438203144,0.25,95.575,95.532,2.82268189]
[1643438203343,6.0,95.576,95.533,3.07268189]
[1643438203544,6.0,95.576,95.535,2.82268189]
[1643438203743,6.0,95.576,95.534,6.15890457]
[1643438203944,6.0,95.576,95.536,0.25]
[1643438204146,6.0,95.576,95.537,3.33622268]
[1643438204344,0.25,95.575,95.538,0.25]
[1643438204544,0.25,95.575,95.539,3.33622268]
[1643438205747,0.25,95.575,95.536,3.33622268]
[1643438205946,0.25,95.575,95.531,2.82268189]
[1643438205947,6.0,95.57,95.531,2.82268189]
[1643438206146,6.0,95.565,95.53,2.82268189]
[1643438206353,7.59658355,95.564,95.53,2.82268189]
[1643438206549,6.0,95.554,95.53,2.82268189]
[1643438206750,7.59658355,95.564,95.531,3.33622268]
[1643438206951,7.59658355,95.564,95.53,2.82268189]
[1643438207151,7.34658355,95.564,95.529,2.82268189]
[1643438207353,7.34658355,95.564,95.53,2.82268189]
[1643438207754,7.34658355,95.564,95.532,2.82268189]
[1643438207956,7.34658355,95.564,95.531,2.82268189]
[1643438208154,7.34658355,95.564,95.533,3.33622268]
[1643438208355,6.0,95.554,95.531,2.82268189]
[1643438208555,6.0,95.554,95.53,2.82268189]
[1643438208755,6.0,95.554,95.516,3.33622268]
[1643438208756,6.0,95.554,95.527,2.82268189]
[1643438208955,6.0,95.554,95.528,2.82268189]
[1643438209154,0.25,95.553,95.528,2.82268189]
[1643438209358,0.25,95.553,95.527,2.82268189]
[1643438209556,0.25,95.553,95.526,2.82268189]
[1643438210158,0.25,95.553,95.525,2.82268189]
[1643438210357,25.1896,95.563,95.525,2.82268189]
[1643438210559,0.25,95.563,95.527,2.82268189]
[1643438210758,7.34658355,95.564,95.526,3.33622268]
[1643438210958,7.34658355,95.564,95.528,3.33622268]
[1643438210959,0.25,95.563,95.528,3.33622268]
[1643438211164,6.0,95.554,95.527,3.33622268]
[1643438211363,0.25,95.553,95.521,2.82268189]
[1643438211562,72.0,95.552,95.501,3.33622268]
[1643438211762,0.25,95.553,95.481,3.33622268]
[1643438211962,6.0,95.542,95.482,3.33622268]
[1643438212163,6.0,95.542,95.454,2.54331153]
[1643438212463,6.25,95.541,95.459,15.48107395]
[1643438212662,6.0,95.54,95.46,45.55426419]
[1643438212962,6.0,95.531,95.461,3.39669588]
[1643438213364,0.25,95.53,95.462,12.33437807]
[1643438213763,0.25,95.53,95.463,0.25]
[1643438213962,0.25,95.53,95.464,3.14669588]
[1643438214165,6.0,95.529,95.464,15.48107395]
[1643438214366,6.0,95.529,95.465,3.39669588]
[1643438214565,6.0,95.529,95.466,3.14669588]
[1643438214767,6.0,95.529,95.467,0.25]
[1643438214965,0.25,95.53,95.468,3.14669588]
[1643438215366,6.0,95.529,95.469,12.58437807]
[1643438215770,23.1406,95.539,95.47,15.48107395]
[1643438216268,6.0,95.529,95.471,15.73107395]
[1643438216468,6.0,95.529,95.472,3.14669588]
[1643438216668,0.25,95.528,95.472,15.48107395]
[1643438216871,0.25,95.528,95.473,3.14669588]
[1643438217071,24.4702,95.528,95.473,15.48107395]
[1643438217270,24.4702,95.528,95.474,3.14669588]
[1643438217471,6.0,95.518,95.475,36.6449968]
[1643438217894,6.0,95.518,95.476,12.33437807]
[1643438218194,24.2202,95.528,95.476,12.58437807]
[1643438218396,0.25,95.517,95.477,12.33437807]
[1643438218594,0.25,95.517,95.444,17.9567006]
[1643438218595,0.25,95.517,95.454,6.0]
[1643438218797,0.25,95.517,95.459,3.08961978]
[1643438218994,24.2202,95.528,95.459,3.08961978]
[1643438219195,0.25,95.527,95.46,47.76491473]
[1643438219396,6.0,95.518,95.469,6.0]
[1643438219595,0.25,95.527,95.47,6.0]
[1643438219795,0.25,95.527,95.471,3.30036954]
[1643438219995,0.25,95.527,95.471,20.87065047]
[1643438220196,6.0,95.54,95.472,0.25]
[1643438220197,0.25,95.529,95.472,0.25]
[1643438220396,0.25,95.539,95.472,12.32733894]
[1643438220597,22.7747,95.539,95.472,12.32733894]
[1643438220796,22.7747,95.539,95.473,0.25]
[1643438221099,6.0,95.529,95.474,12.32733894]
[1643438221298,22.7747,95.539,95.475,34.71404166]
[1643438221498,22.7747,95.539,95.475,34.46404166]
[1643438221696,22.7747,95.539,95.476,0.25]
[1643438221898,22.7747,95.539,95.476,12.57733894]
[1643438222297,22.7747,95.539,95.477,12.32733894]
[1643438222898,22.7747,95.539,95.478,0.25]
[1643438223299,0.25,95.539,95.478,0.25]
[1643438223498,0.25,95.539,95.479,12.32733894]
[1643438223701,23.028,95.55,95.479,12.32733894]
[1643438223898,23.028,95.55,95.48,0.25]
[1643438224301,6.0,95.54,95.48,0.25]
[1643438224501,6.0,95.54,95.481,12.32733894]
[1643438224704,0.25,95.539,95.481,12.32733894]
[1643438224903,6.0,95.54,95.482,0.25]
[1643438225102,6.0,95.54,95.482,2.79331153]
[1643438225304,22.778,95.55,95.483,14.87065047]
[1643438225705,0.25,95.549,95.484,15.12065047]
[1643438225906,0.25,95.549,95.484,12.32733894]
[1643438226106,0.25,95.549,95.485,12.57733894]
[1643438226307,0.25,95.549,95.486,0.25]
[1643438226505,22.778,95.55,95.486,0.25]
[1643438226708,22.778,95.55,95.486,2.79331153]
[1643438226904,30.77,95.57,95.487,14.85368047]
[1643438227106,6.0,95.554,95.487,12.31036894]
[1643438227305,6.0,95.554,95.488,12.56036894]
[1643438227704,6.0,95.553,95.49,46.3433939]
[1643438227904,15.7,95.553,95.489,12.31036894]
[1643438228106,15.06,95.55,95.476,24.1631]
[1643438228306,0.25,95.549,95.477,0.25]
[1643438228507,6.0,95.54,95.477,12.56506437]
[1643438228704,22.8607,95.539,95.477,12.56506437]
[1643438228906,23.1107,95.539,95.477,0.25]
[1643438229104,6.0,95.529,95.459,45.7316338]
[1643438229305,0.25,95.528,95.46,3.04890214]
[1643438229706,24.5408,95.528,95.461,12.32655654]
[1643438230106,6.0,95.518,95.462,3.04890214]
[1643438230307,0.25,95.517,95.462,3.04890214]
[1643438230508,0.25,95.517,95.463,12.57655654]
[1643438230906,0.25,95.517,95.464,12.32655654]
[1643438231308,6.0,95.518,95.465,0.25]
[1643438231709,24.2908,95.528,95.466,12.32655654]
[1643438231908,6.0,95.518,95.467,3.29848929]
[1643438232109,6.0,95.518,95.467,0.25]
[1643438232610,24.2908,95.528,95.468,14.86986807]
[1643438232808,24.2908,95.528,95.469,0.25]
[1643438233009,24.2908,95.528,95.469,18.16822874]
[1643438233209,24.2908,95.528,95.47,2.54331153]
[1643438233510,24.2908,95.528,95.471,0.25]
[1643438233709,24.2908,95.528,95.471,3.29836067]
[1643438234113,24.2908,95.528,95.472,12.32655654]
[1643438234310,24.2908,95.528,95.473,0.25]
[1643438234512,24.2908,95.528,95.474,12.32655654]
[1643438234810,0.25,95.527,95.474,12.32655654]
[1643438235010,6.0,95.518,95.443,2.54331153]
[1643438235210,24.1294,95.517,95.453,6.0]
[1643438235412,24.1294,95.517,95.459,15.37983418]
[1643438235613,23.9202,95.539,95.459,61.40687039]
[1643438235912,24.3794,95.538,95.46,15.37983418]
[1643438236211,6.0,95.528,95.461,15.37983418]
[1643438236412,0.25,95.527,95.462,3.30238631]
[1643438236615,0.25,95.527,95.462,0.25]
[1643438236814,24.4192,95.527,95.462,0.25]
[1643438237014,24.4192,95.527,95.463,12.31583267]
[1643438237415,24.4192,95.527,95.464,3.30392269]
[1643438237814,24.4192,95.527,95.465,3.05392269]
[1643438238015,6.0,95.517,95.465,3.05392269]
[1643438238214,24.4192,95.527,95.466,0.25]
[1643438238415,24.4192,95.527,95.467,3.05392269]
[1643438238817,24.4192,95.527,95.468,0.25]
[1643438239118,6.0,95.517,95.469,3.05392269]
[1643438239315,0.25,95.516,95.47,0.25]
[1643438239716,24.4903,95.516,95.471,3.05392269]
[1643438239918,24.4903,95.516,95.459,3.05392269]
[1643438240319,24.4903,95.516,95.46,12.31255565]
[1643438240519,24.4903,95.516,95.461,3.05392269]
[1643438241119,72.0,95.515,95.44,4.20684958]
[1643438241323,0.25,95.514,95.44,4.20684958]
[1643438241520,0.25,95.514,95.439,0.19108024]
[1643438241721,6.0,95.506,95.439,0.19108024]
[1643438241919,23.0912,95.505,95.439,0.19108024]
[1643438242121,6.0,95.495,95.458,0.30808599]
[1643438242320,23.9287,95.494,95.458,0.30808599]
[1643438242520,6.0,95.484,95.458,0.30808599]
[1643438242719,23.6787,95.483,95.458,0.30808599]
[1643438242919,6.0,95.48,95.458,0.30808599]
[1643438243120,6.0,95.473,95.458,0.30808599]
[1643438243318,0.25,95.472,95.458,0.30808599]
[1643438244922,0.25,95.482,95.458,0.30808599]
[1643438245424,4.33424617,95.631,95.462,63.87]
[1643438245623,78.1292,95.659,95.506,0.32454595]
[1643438245822,78.1292,95.659,95.498,106.4]
[1643438245823,78.1292,95.659,95.571,16.41850579]
[1643438246023,0.0013,95.584,95.581,6.0]
[1643438246224,78.3453,95.678,95.583,106.4]
[1643438246427,4.33424617,95.741,95.583,106.4]
[1643438246428,15.06,95.76,95.59,15.06]
[1643438246624,15.6372,95.76,95.61,188.28]
[1643438246826,342.067,95.77,95.62,203.34]
[1643438247023,342.067,95.77,95.63,188.28]
[1643438247225,342.067,95.77,95.64,15.06]
[1643438247423,357.747,95.77,95.64,15.06]
[1643438247627,34.64484538,95.769,95.641,0.25]
[1643438248123,40.79484538,95.769,95.641,0.25]
[1643438248624,46.5730535,95.749,95.64,15.06]
[1643438248824,46.5730535,95.749,95.641,0.25]
[1643438249225,46.5730535,95.749,95.64,15.06]
[1643438249828,2.95669142,95.748,95.64,15.06]
[1643438250028,15.685,95.74,95.64,15.06]
[1643438250228,15.685,95.74,95.641,0.25]
[1643438250429,15.685,95.74,95.65,6.0]
[1643438250628,52.7230535,95.749,95.651,6.0]
[1643438250931,52.7230535,95.749,95.651,6.25]
[1643438251128,46.5730535,95.749,95.66,6.0]
[1643438251350,46.5730535,95.749,95.67,15.06]
[1643438251729,46.5730535,95.749,95.671,0.25]
[1643438251933,46.5730535,95.749,95.68,6.0]
[1643438252130,46.5730535,95.749,95.68,21.06]
[1643438252331,46.5730535,95.749,95.681,6.25]
[1643438252532,46.5730535,95.749,95.681,0.25]
[1643438252733,46.5730535,95.749,95.68,15.06]
[1643438252933,46.5730535,95.749,95.66,15.06]
[1643438253133,0.25,95.748,95.66,15.06]
[1643438254535,6.0,95.739,95.661,0.25]
[1643438254733,6.0,95.739,95.661,2.78816993]
[1643438254933,72.0,95.738,95.641,2.53816993]
[1643438255134,72.0,95.738,95.562,68.87]
[1643438255135,106.4,95.737,95.62,15.06]
[1643438255338,6.0,95.728,95.59,15.06]
[1643438255536,6.0,95.727,95.58,15.06]
[1643438255736,6.0,95.727,95.59,15.06]
[1643438255935,0.25,95.726,95.591,63.87]
[1643438256136,2.95669142,95.748,95.63,15.681]
[1643438256336,6.0,95.738,95.641,37.97063691]
[1643438256739,6.0,95.738,95.642,0.25]
[1643438256936,6.0,95.738,95.651,6.0]
[1643438257142,6.0,95.738,95.66,15.06]
[1643438257338,6.0,95.738,95.661,0.25]
[1643438257538,6.0,95.738,95.66,15.06]
[1643438257940,2.95669142,95.737,95.651,6.0]
[1643438258144,6.0,95.727,95.64,15.06]
[1643438258540,2.95669142,95.726,95.64,15.06]
[1643438258743,3.20669142,95.726,95.62,15.06]
[1643438258962,6.0,95.716,95.621,42.40050323]
[1643438259161,6.0,95.716,95.621,42.65050323]
[1643438259362,0.25,95.715,95.621,42.65050323]
[1643438259562,9.20669142,95.715,95.621,42.65050323]
[1643438259962,2.95669142,95.714,95.621,42.65050323]
[1643438260164,6.0,95.704,95.621,42.65050323]
[1643438260465,0.25,95.703,95.621,42.65050323]
[1643438261564,0.25,95.709,95.621,42.40050323]
[1643438261763,0.25,95.709,95.62,15.06]
[1643438262764,0.25,95.709,95.621,35.64830838]
[1643438263365,6.4,95.709,95.621,35.64830838]
[1643438263567,6.0,95.699,95.621,35.64830838]
[1643438263765,0.25,95.698,95.622,0.25]
[1643438263965,0.25,95.698,95.59,15.06]
[1643438264167,3.20669142,95.698,95.56,30.752]
[1643438264365,6.0,95.69,95.581,0.25]
[1643438264565,6.0,95.687,95.581,0.25]
[1643438264766,6.0,95.68,95.581,0.25]
[1643438265169,0.25,95.679,95.581,0.25]
[1643438265366,0.25,95.679,95.572,0.25]
[1643438265566,0.25,95.679,95.58,6.0]
[1643438265767,0.25,95.679,95.581,43.56713244]
[1643438266166,0.25,95.679,95.591,6.0]
[1643438266367,6.0,95.68,95.592,0.25]
[1643438266768,0.25,95.679,95.592,0.25]
[1643438267473,0.25,95.679,95.591,6.0]
[1643438267672,11.77,95.679,95.581,43.31713244]
[1643438267871,11.77,95.679,95.582,0.25]
[1643438268072,6.0,95.669,95.582,0.25]
[1643438268273,0.25,95.668,95.582,0.25]
[1643438268871,0.25,95.668,95.581,0.25]
[1643438269072,6.25,95.668,95.59,6.0]
[1643438269272,6.25,95.668,95.591,0.25]
[1643438269572,0.25,95.668,95.57,15.69]
[1643438269772,13.04,95.669,95.591,0.25]
[1643438270776,13.04,95.669,95.582,0.25]
[1643438270977,0.25,95.669,95.591,6.0]
[1643438271178,0.25,95.669,95.582,0.25]
[1643438271380,8.94,95.669,95.574,0.25]
[1643438271580,6.0,95.659,95.574,0.25]
[1643438271779,0.25,95.658,95.56,6.0]
[1643438272178,0.25,95.658,95.561,38.91387027]
[1643438272583,0.25,95.658,95.571,6.0]
[1643438272780,0.25,95.658,95.572,0.25]
[1643438272979,6.0,95.679,95.572,0.25]
[1643438272980,0.25,95.678,95.572,0.25]
[1643438273580,6.0,95.67,95.572,0.25]
[1643438273780,0.25,95.669,95.572,0.25]
[1643438276081,6.0,95.67,95.572,0.25]
[1643438276683,6.0,95.67,95.571,6.0]
[1643438276684,2.95669142,95.669,95.54,33.49591348]
[1643438276885,2.95669142,95.669,95.54,17.80091348]
[1643438277085,6.0,95.659,95.527,4.20684958]
[1643438277284,0.25,95.658,95.527,4.20684958]
[1643438277487,0.00424617,95.782,95.676,2.52134575]
[1643438277687,15.3279,95.831,95.769,0.00141113]
[1643438277985,15.9217,95.879,95.769,0.00141113]
[1643438277986,15.06,95.85,95.769,0.00141113]
[1643438278183,188.28,95.89,95.769,0.00141113]
[1643438278184,15.06,95.86,95.769,0.00141113]
[1643438278583,286.399,95.878,95.769,0.00141113]
[1643438279483,3.39863747,95.836,95.769,0.00141113]
[1643438279884,30.733,95.83,95.769,0.00141113]
[1643438280085,6.0,95.82,95.769,0.00141113]
[1643438280293,15.06,95.81,95.769,0.00141113]
[1643438280486,106.4,95.809,95.769,0.00141113]
[1643438280687,6.0,95.8,95.769,0.00141113]
[1643438280889,15.06,95.79,95.769,0.00141113]
[1643438281088,6.0,95.78,95.769,0.00141113]
[1643438281486,9.05,95.78,95.769,0.00141113]
[1643438281686,3.05,95.78,95.769,0.00141113]
[1643438281889,6.0,95.77,95.769,0.00141113]
[1643438282287,3.05,95.78,95.769,0.00141113]
[1643438282490,79.2225,95.798,95.769,0.00141113]
[1643438282891,6.0,95.788,95.769,0.00141113]
[1643438283389,0.25,95.787,95.769,0.00141113]
[1643438283789,0.25,95.787,95.679,43.88043203]
[1643438284190,0.25,95.787,95.689,6.0]
[1643438284389,6.0,95.78,95.679,43.88043203]
[1643438284590,6.0,95.78,95.653,19.84694749]
[1643438284789,0.25,95.779,95.654,0.25]
[1643438284990,0.25,95.779,95.663,6.0]
[1643438285396,0.25,95.779,95.664,0.25]
[1643438285593,3.0,95.779,95.665,6.0]
[1643438285792,3.0,95.779,95.666,0.25]
[1643438285992,6.0,95.769,95.674,6.0]
[1643438286391,6.0,95.769,95.675,0.25]
[1643438286994,6.0,95.78,95.675,0.25]
[1643438287291,0.25,95.779,95.664,34.42090814]
[1643438287894,8.95,95.78,95.665,2.52891336]
[1643438288095,8.95,95.78,95.675,6.0]
[1643438288293,8.95,95.78,95.676,0.25]
[1643438289096,8.95,95.78,95.676,6.25]
[1643438289296,0.25,95.779,95.676,0.25]
[1643438289700,0.25,95.779,95.674,6.0]
[1643438289898,0.25,95.779,95.675,0.25]
[1643438290500,0.25,95.779,95.675,6.25]
[1643438291102,0.25,95.779,95.675,18.72911186]
[1643438291301,0.25,95.791,95.675,12.72911186]
[1643438291502,0.25,95.791,95.686,40.82622624]
[1643438291700,2.5,95.779,95.685,6.0]
[1643438291902,0.25,95.778,95.686,0.25]
[1643438292300,6.0,95.769,95.686,0.25]
[1643438292718,19.02,95.769,95.686,0.25]
[1643438292920,0.25,95.768,95.681,0.25]
[1643438294621,6.0,95.782,95.681,0.25]
[1643438295423,6.0,95.782,95.69,15.06]
[1643438295622,6.0,95.782,95.7,6.0]
[1643438295825,6.0,95.782,95.701,0.25]
[1643438297125,6.0,95.782,95.703,6.0]
[1643438297324,0.25,95.781,95.704,0.25]
[1643438297930,0.25,95.786,95.705,2.52891336]
[1643438298129,0.25,95.796,95.716,43.41487315]
[1643438298330,0.25,95.796,95.717,0.25]
[1643438298528,0.25,95.796,95.726,6.0]
[1643438298927,22.7975,95.826,95.727,0.25]
[1643438299328,72.4172,95.827,95.727,0.25]
[1643438299529,197.6333,95.847,95.73,6.0]
[1643438299728,197.6333,95.847,95.731,34.15208493]
[1643438299928,197.6333,95.847,95.731,34.40208493]
[1643438300128,197.6333,95.847,95.741,6.0]
[1643438300528,6.0,95.837,95.731,12.72441741]
[1643438301128,6.0,95.837,95.731,0.25]
[1643438301529,6.0,95.837,95.731,36.36862845]
[1643438301730,6.0,95.837,95.731,36.11862845]
[1643438301930,6.0,95.837,95.732,0.25]
[1643438302131,6.0,95.83,95.732,0.25]
[1643438302331,0.25,95.829,95.732,0.25]
[1643438303631,6.34863747,95.836,95.73,6.0]
[1643438303632,0.25,95.835,95.731,0.25]
[1643438304233,0.25,95.835,95.731,40.49887382]
[1643438305032,6.34863747,95.836,95.741,6.0]
[1643438305232,6.34863747,95.836,95.731,40.49887382]
[1643438305433,6.0,95.83,95.742,0.25]
[1643438305634,6.0,95.826,95.731,40.49887382]
[1643438306037,6.0,95.826,95.741,6.0]
[1643438306238,6.0,95.83,95.741,6.0]
[1643438306437,0.25,95.825,95.742,0.25]
[1643438306635,0.25,95.829,95.742,0.25]
[1643438307636,0.25,95.829,95.741,6.0]
[1643438307838,0.25,95.835,95.742,0.25]
[1643438308937,0.25,95.835,95.743,1.40899271]
[1643438309137,0.25,95.835,95.747,1.40899271]
[1643438309338,0.25,95.835,95.748,0.25]
[1643438310739,0.25,95.835,95.748,1.65899271]
[1643438310938,0.25,95.835,95.747,1.40899271]
[1643438311439,0.25,95.835,95.748,37.01556735]
[1643438311639,6.34863747,95.836,95.748,37.01556735]
[1643438312041,6.34863747,95.836,95.748,38.42456006]
[1643438312440,6.34863747,95.836,95.748,1.40899271]
[1643438312640,6.34863747,95.836,95.749,1.65899271]
[1643438312840,0.25,95.835,95.749,0.25]
[1643438313242,0.25,95.835,95.746,1.40899271]
[1643438313641,6.0,95.83,95.743,1.40899271]
[1643438313845,0.25,95.829,95.742,1.40899271]
[1643438314043,0.25,95.829,95.727,41.30916965]
[1643438314044,0.25,95.829,95.74,1.40899271]
[1643438314645,0.25,95.829,95.741,0.25]
[1643438314847,0.25,95.829,95.742,1.40899271]
[1643438315046,6.0,95.83,95.743,1.40899271]
[1643438315249,6.0,95.83,95.748,1.40899271]
[1643438315649,6.0,95.83,95.749,1.65899271]
[1643438315949,9.0,95.83,95.749,1.40899271]
[1643438316146,9.0,95.83,95.728,0.25]
[1643438316147,9.0,95.83,95.744,1.40899271]
[1643438316350,23.0509,95.829,95.745,0.25]
[1643438316547,6.0,95.819,95.743,1.40899271]
[1643438316748,6.0,95.819,95.744,0.25]
[1643438316946,0.25,95.818,95.741,1.40899271]
[1643438317147,6.0,95.81,95.726,1.40899271]
[1643438317346,0.25,95.809,95.723,1.40899271]
[1643438317547,6.25,95.809,95.722,1.40899271]
[1643438317747,6.0,95.8,95.721,1.40899271]
[1643438317948,48.8913,95.799,95.723,1.40899271]
[1643438318148,48.8913,95.799,95.689,40.8582429]
[1643438318149,15.676,95.79,95.72,1.40899271]
[1643438318347,0.25,95.789,95.722,1.40899271]
[1643438318548,6.0,95.78,95.723,1.40899271]
[1643438318749,6.0,95.78,95.721,1.40899271]
[1643438318950,0.25,95.779,95.721,1.40899271]
[1643438319148,6.0,95.78,95.721,1.40899271]
[1643438319348,6.0,95.78,95.725,1.40899271]
[1643438319551,6.0,95.78,95.727,1.40899271]
[1643438319949,6.0,95.78,95.725,1.40899271]
[1643438320151,6.0,95.78,95.724,1.40899271]
[1643438320350,0.25,95.779,95.724,1.40899271]
[1643438320551,0.25,95.779,95.723,1.40899271]
[1643438320851,0.25,95.779,95.7,34.78577906]
[1643438320852,0.25,95.779,95.722,1.40899271]
[1643438321049,0.25,95.779,95.72,1.40899271]
[1643438321750,0.25,95.779,95.721,1.40899271]
[1643438322550,0.25,95.779,95.722,1.40899271]
[1643438322754,25.2105,95.779,95.721,1.40899271]
[1643438322956,38.4905,95.779,95.711,1.40899271]
[1643438323155,6.0,95.769,95.71,1.40899271]
[1643438323358,0.25,95.768,95.708,1.40899271]
[1643438323754,0.25,95.768,95.709,1.40899271]
[1643438323954,3.3,95.768,95.708,1.40899271]
[1643438324159,6.0,95.758,95.708,1.40899271]
[1643438324357,0.25,95.757,95.708,1.40899271]
[1643438324558,0.25,95.757,95.707,1.40899271]
[1643438324858,0.25,95.757,95.703,1.40899271]
[1643438325261,0.25,95.757,95.698,1.40899271]